fUST/lending_fUST_20241202
["ID","MTS","AMOUNT","RATE_DAILY","PERIOD"]
[343928931,1733086246403,-1141.17,0.00029863,3]
[343928932,1733086246412,-1855.91,0.00029863,3]
[343928933,1733086246422,-500.0,0.00029863,3]
[343928935,1733086246432,-500.0,0.00029863,3]
[343928936,1733086246442,-500.0,0.00029863,3]
[343928937,1733086246451,-784.17,0.00029863,3]
[343928938,1733086246460,-500.0,0.00029863,3]
[343928939,1733086246470,-4062.28,0.00029863,3]
[343928940,1733086246479,-1222.19,0.00029863,3]
[343928941,1733086246488,-1435.16,0.00029863,3]
[343928942,1733086246498,-3089.47,0.00029863,3]
[343928943,1733086246507,-746.14,0.00029863,3]
[343928944,1733086246518,-1670.7,0.00029863,3]
[343928945,1733086246527,-633.22779475,0.00029959,2]
[343928946,1733086246536,-299.0,0.0002998,120]
[343928947,1733086246545,-299.0,0.0002999,120]
[343928948,1733086246555,-1000.0,0.0003,30]
[343928949,1733086246564,-150.0,0.0003,2]
[343928950,1733086246574,-999.36189659,0.0003,30]
[343928951,1733086246584,-2777.0,0.0003,2]
[343928952,1733086246594,-2777.0,0.0003,2]
[343928953,1733086246603,-2777.0,0.0003,2]
[343928954,1733086246613,-2777.0,0.0003,2]
[343928955,1733086246622,-2777.0,0.0003,2]
[343928956,1733086246632,-2777.0,0.0003,2]
[343928957,1733086246641,-170.0,0.0003,2]
[343928958,1733086246650,-2677.25,0.00030063,30]
[343928959,1733086246659,-151.0,0.000301,11]
[343928960,1733086246669,-500.0,0.00030136,3]
[343928961,1733086246679,-500.0,0.00030136,3]
[343928962,1733086246688,-500.0,0.00030136,3]
[343928963,1733086246697,-500.0,0.00030136,3]
[343928964,1733086246707,-500.0,0.00030136,3]
[343928965,1733086246716,-633.36,0.00030136,3]
[343928966,1733086246726,-621.6,0.00030136,3]
[343928967,1733086246735,-500.0,0.00030136,6]
[343928968,1733086246744,-646.32278393,0.00030136,3]
[343928969,1733086246754,-1636.35,0.00030136,3]
[343928970,1733086246764,-532.11,0.00030136,3]
[343928971,1733086246773,-13355.5,0.00030136,3]
[343928972,1733086246784,-500.0,0.00030136,3]
[343928973,1733086246794,-1707.22,0.00030136,3]
[343928974,1733086246805,-403.0,0.00030136,3]
[343928975,1733086246815,-500.0,0.00030136,3]
[343928976,1733086246828,-2856.87,0.00030136,3]
[343928977,1733086246840,-500.0,0.00030136,3]
[343928978,1733086246851,-1159.82,0.00030136,3]
[343928979,1733086246861,-613.32,0.00030136,3]
[343928980,1733086246871,-1141.17,0.00030136,3]
[343928981,1733086246881,-1855.91,0.00030136,3]
[343928982,1733086246891,-500.0,0.00030136,3]
[343928983,1733086246901,-500.0,0.00030136,3]
[343928984,1733086246910,-500.0,0.00030136,3]
[343928985,1733086246922,-784.17,0.00030136,3]
[343928986,1733086246936,-500.0,0.00030136,3]
[343928987,1733086246946,-4062.28,0.00030136,3]
[343928988,1733086246955,-1222.19,0.00030136,3]
[343928989,1733086246964,-1435.16,0.00030136,3]
[343928990,1733086246974,-3089.47,0.00030136,3]
[343928991,1733086246983,-746.14,0.00030136,3]
[343928992,1733086246994,-1670.7,0.00030136,3]
[343928993,1733086247003,-521.560192,0.00030137,120]
[343928994,1733086247013,-1454.0,0.00030219,32]
[343928995,1733086247022,-156.24,0.000303,31]
[343928996,1733086247032,-156.24,0.000303,31]
[343928997,1733086247046,-156.24,0.000303,31]
[343928998,1733086247060,-156.24,0.000303,31]
[343928999,1733086247074,-156.24,0.000303,31]
[343929000,1733086247089,-156.24,0.000303,31]
[343929001,1733086247098,-156.24,0.000303,31]
[343929002,1733086247108,-156.24,0.000303,31]
[343929003,1733086247118,-156.24,0.000303,31]
[343929004,1733086247128,-156.24,0.000303,31]
[343929005,1733086247138,-156.24,0.000303,31]
[343929006,1733086247147,-156.24,0.000303,31]
[343929007,1733086247157,-156.24,0.000303,31]
[343929008,1733086247166,-156.24,0.000303,31]
[343929009,1733086247175,-156.24,0.000303,31]
[343929010,1733086247185,-156.24,0.000303,31]
[343929011,1733086247194,-239.88,0.00030367,30]
[343929012,1733086247204,-2000.0,0.000304,3]
[343929013,1733086247216,-633.22779475,0.00030404,2]
[343929014,1733086247226,-500.0,0.0003041,3]
[343929015,1733086247235,-500.0,0.0003041,3]
[343929016,1733086247245,-500.0,0.0003041,3]
[343929017,1733086247254,-500.0,0.0003041,3]
[343929018,1733086247265,-500.0,0.0003041,3]
[343929019,1733086247274,-633.36,0.0003041,3]
[343929020,1733086247283,-621.6,0.0003041,3]
[343929021,1733086247294,-1636.35,0.0003041,3]
[343929022,1733086247376,-532.11,0.0003041,3]
[343929023,1733086247386,-13355.5,0.0003041,3]
[343929024,1733086247395,-500.0,0.0003041,3]
[343929025,1733086247404,-1707.22,0.0003041,3]
[343929026,1733086247414,-285.1624404,0.0003041,3]
[343929027,1733086247423,-2856.87,0.0003041,3]
[343929028,1733086247432,-500.0,0.0003041,3]
[343929029,1733086247441,-1159.82,0.0003041,3]
[343929030,1733086247451,-613.32,0.0003041,3]
[343929031,1733086247460,-1141.17,0.0003041,3]
[343929032,1733086247469,-1855.91,0.0003041,3]
[343929033,1733086247479,-500.0,0.0003041,3]
[343929034,1733086247488,-500.0,0.0003041,3]
[343929035,1733086247497,-500.0,0.0003041,3]
[343929036,1733086247506,-784.17,0.0003041,3]
[343929037,1733086247515,-500.0,0.0003041,3]
[343929038,1733086247525,-4062.28,0.0003041,3]
[343929039,1733086247534,-1222.19,0.0003041,3]
[343929040,1733086247543,-1435.16,0.0003041,3]
[343929041,1733086247553,-3089.47,0.0003041,3]
[343929042,1733086247562,-746.14,0.0003041,3]
[343929043,1733086247572,-1670.7,0.0003041,3]
[343929044,1733086247581,-299.0,0.0003048,120]
[343929045,1733086247592,-299.0,0.0003049,120]
[343929046,1733086247601,-300.0,0.000305,3]
[343929047,1733086247610,-396.67837979,0.00030504,7]
[343929048,1733086247620,-396.67837979,0.00030504,7]
[343929049,1733086247630,-66772.64333738,0.00030504,10]
[343929050,1733086247702,-151.0,0.00027397,7]
[343929051,1733086247712,-259.298174,0.000276,7]
[343929052,1733086247722,-500.0,0.00028493,3]
[343929053,1733086247733,-379.73443533,0.00028767,3]
[343929054,1733086247742,-382.94407731,0.00030504,10]
[343929056,1733086540984,157.598729,0.00013973,2]
[343929063,1733087172511,157.598729,0.00013973,2]
[343929105,1733087432682,-170.675925,0.00026192,2]
[343929106,1733087432691,-262.424075,0.00026234,2]
[343929141,1733087438936,-16.575925,0.00026234,2]
[343929142,1733087438947,-300.0,0.00026234,2]
[343929143,1733087438957,-13430.3598055,0.00026236,2]
[343929175,1733087443327,-9550.7861254,0.00026236,2]
[343929178,1733087443337,-150.0,0.000273,2]
[343929181,1733087443347,-500.0,0.00027397,3]
[343929184,1733087443356,-500.0,0.00027397,3]
[343929186,1733087443366,-366.21387455,0.00027397,3]
[343929188,1733087443379,-133.78612545,0.00027397,3]
[343929191,1733087443388,-500.0,0.00027397,3]
[343929195,1733087443397,-392.20120983,0.00027397,3]
[343929198,1733087443407,-559.42564322,0.00027397,3]
[343929200,1733087443416,-500.0,0.00027397,3]
[343929203,1733087443426,-500.0,0.00027397,3]
[343929205,1733087443436,-500.0,0.00027397,3]
[343929207,1733087443446,-500.0,0.00027397,3]
[343929208,1733087443455,-500.0,0.00027397,3]
[343929210,1733087443464,-500.0,0.00027397,3]
[343929212,1733087443473,-432.9532775,0.00027397,3]
[343929213,1733087443483,-500.0,0.00027397,3]
[343929215,1733087443492,-500.0,0.00027397,3]
[343929217,1733087443502,-500.0,0.00027397,3]
[343929219,1733087443511,-500.0,0.00027397,3]
[343929222,1733087443521,-500.0,0.00027397,3]
[343929224,1733087443530,-304.33942592,0.00027397,3]
[343929234,1733087443850,-195.66057408,0.00027397,3]
[343929235,1733087443861,-470.75536038,0.00027397,3]
[343929237,1733087443872,-156.11829639,0.00027397,3]
[343929239,1733087443882,-500.0,0.00027397,3]
[343929240,1733087443891,-500.0,0.00027397,3]
[343929241,1733087443901,-500.0,0.00027397,3]
[343929242,1733087443910,-423.34006538,0.00027397,3]
[343929244,1733087443922,-76.65993462,0.00027397,3]
[343929246,1733087443931,-500.0,0.00027397,3]
[343929247,1733087443941,-550.67841102,0.00027397,3]
[343929249,1733087443950,-504.03013506,0.00027397,3]
[343929251,1733087443960,-500.0,0.00027397,3]
[343929253,1733087443970,-500.0,0.00027397,3]
[343929255,1733087443980,-500.0,0.00027397,3]
[343929257,1733087443989,-500.0,0.00027397,3]
[343929259,1733087443998,-241.59083774,0.00027397,3]
[343929260,1733087444008,-500.0,0.00027397,3]
[343929261,1733087444017,-68.02072513,0.00027397,3]
[343929262,1733087444030,-431.97927487,0.00027397,3]
[343929263,1733087444039,-717.58,0.00027397,3]
[343929264,1733087444048,-500.0,0.00027397,3]
[343929265,1733087444059,-500.0,0.00027397,3]
[343929266,1733087444069,-500.0,0.00027397,3]
[343929267,1733087444078,-449.73944175,0.00027397,3]
[343929268,1733087444087,-500.0,0.00027397,3]
[343929269,1733087444097,-278.04240736,0.00027397,3]
[343929270,1733087444108,-221.95759264,0.00027397,3]
[343929271,1733087444117,-500.0,0.00027397,3]
[343929272,1733087444127,-200.80063464,0.00027397,3]
[343929287,1733087446671,-178.54280332,0.00027397,3]
[343929288,1733087446681,-862.26,0.00027397,3]
[343929289,1733087446691,-853.61,0.00027397,3]
[343929290,1733087446701,-500.0,0.00027397,3]
[343929291,1733087446712,-500.0,0.00027397,3]
[343929292,1733087446723,-500.0,0.00027397,3]
[343929293,1733087446733,-500.0,0.00027397,3]
[343929294,1733087446743,-500.0,0.00027397,3]
[343929295,1733087446753,-500.0,0.00027397,3]
[343929296,1733087446763,-500.0,0.00027397,3]
[343929297,1733087446772,-500.0,0.00027397,3]
[343929298,1733087446781,-337.52712806,0.00027397,3]
[343929299,1733087446791,-500.0,0.00027397,3]
[343929301,1733087446801,-500.0,0.00027397,3]
[343929302,1733087446810,-1428.43,0.00027397,3]
[343929303,1733087446821,-579.91,0.00027397,3]
[343929304,1733087446831,-146.52705336,0.00027397,3]
[343929316,1733087846992,157.598729,0.00013973,2]
[343929326,1733088496544,157.598729,0.00013973,2]
[343929333,1733088554201,-6651.97444944,0.0001999,2]
[343929345,1733088619497,567.25102589,0.00024264,2]
[343929364,1733088631995,-85.43768371,0.00024264,2]
[343929365,1733088632006,-300.0,0.00024989,2]
[343929366,1733088632019,-247.68915715,0.00024989,2]
[343929367,1733088632040,-52.31084285,0.00024989,2]
[343929368,1733088632057,-5883.60333663,0.00025,2]
[343929369,1733088632071,-17353.97716127,0.00025,2]
[343929370,1733088632082,-2048.6165067,0.00025,2]
[343929389,1733088640127,-309.82641504,0.0002499,10]
[343929390,1733088640140,-4521.93358496,0.0002499,10]
[343929391,1733088640150,-500.0,0.00024999,2]
[343929392,1733088640160,-500.0,0.00024999,2]
[343929393,1733088640169,-308.19443868,0.00024999,2]
[343929394,1733088640179,-202.11392542,0.00024999,2]
[343929395,1733088640189,-27857.78367425,0.00025,2]
[343929396,1733088640198,-18041.53451257,0.00025,2]
[343929444,1733088643024,-22993.48095378,0.00025,2]
[343929445,1733088643040,-17047.63718326,0.00025,2]
[343929447,1733088643050,-2966.78118118,0.0002509,2]
[343929449,1733088645308,1700.0,0.00026,60]
[343929458,1733088645806,-4705.67643336,0.0002509,2]
[343929459,1733088645816,-4026.47,0.00025751,10]
[343929460,1733088645827,-168.560225,0.00025761,2]
[343929461,1733088645837,-2186.6085924,0.0002609,2]
[343929462,1733088645846,-160.0,0.00026778,3]
[343929463,1733088645855,-9562.40467394,0.00026856,2]
[343929464,1733088645865,-150.0,0.00026895,2]
[343929465,1733088645875,-300.0,0.00027072,2]
[343929466,1733088645885,-300.0,0.000273,13]
[343929467,1733088645894,-180.942,0.000273,16]
[343929468,1733088645904,-191.68,0.00027387,3]
[343929469,1733088645914,-5000.0,0.00027396,2]
[343929470,1733088645923,-589.16551978,0.00027396,2]
[343929471,1733088645933,-218.94805121,0.00027396,2]
[343929472,1733088645942,-225.32680909,0.00027396,2]
[343929473,1733088645952,-263.24801452,0.00027396,2]
[343929474,1733088645962,-500.0,0.00027397,3]
[343929475,1733088645971,-221.95759264,0.00027397,3]
[343929476,1733088645982,-466.28262266,0.00027397,3]
[343929477,1733088645991,-500.0,0.00027397,3]
[343929478,1733088646001,-500.0,0.00027397,3]
[343929479,1733088646011,-500.0,0.00027397,3]
[343929480,1733088646021,-500.0,0.00027397,3]
[343929481,1733088646033,-500.0,0.00027397,3]
[343929482,1733088646043,-539.79236351,0.00027397,3]
[343929483,1733088646167,-500.0,0.00027397,3]
[343929484,1733088646177,-500.0,0.00027397,3]
[343929485,1733088646187,-500.0,0.00027397,3]
[343929486,1733088646197,-500.0,0.00027397,3]
[343929487,1733088646207,-500.0,0.00027397,3]
[343929488,1733088646218,-500.0,0.00027397,3]
[343929489,1733088646227,-500.0,0.00027397,3]
[343929490,1733088646237,-200.80063464,0.00027397,3]
[343929491,1733088646247,-500.0,0.00027397,3]
[343929492,1733088646257,-500.0,0.00027397,3]
[343929493,1733088646267,-500.0,0.00027397,3]
[343929494,1733088646277,-500.0,0.00027397,3]
[343929495,1733088646287,-826.33,0.00027397,3]
[343929496,1733088646297,-500.0,0.00027397,3]
[343929497,1733088646307,-500.0,0.00027397,3]
[343929498,1733088646316,-500.0,0.00027397,3]
[343929499,1733088646326,-252.97268402,0.00027397,3]
[343929500,1733088646337,-294.80186968,0.00027397,3]
[343929501,1733088646347,-500.0,0.00027397,3]
[343929502,1733088646356,-500.0,0.00027397,3]
[343929503,1733088646366,-500.0,0.00027397,3]
[343929504,1733088646375,-500.0,0.00027397,3]
[343929505,1733088646385,-500.0,0.00027397,3]
[343929506,1733088646394,-947.98,0.00027397,3]
[343929507,1733088646404,-290.32008457,0.00027397,3]
[343929508,1733088646413,-292.44710518,0.00027397,3]
[343929509,1733088646429,-453.0,0.00027397,3]
[343929510,1733088646441,-419.81826451,0.00027397,3]
[343929511,1733088646452,-224.48463031,0.00027397,3]
[343929512,1733088646462,-491.18164741,0.00027397,3]
[343929513,1733088646472,-500.0,0.00027397,3]
[343929514,1733088646481,-555.75,0.00027397,3]
[343929515,1733088646490,-500.0,0.00027397,3]
[343929516,1733088646500,-2343.84274301,0.00027397,3]
[343929517,1733088646511,-714.27373382,0.00027397,3]
[343929779,1733089090269,184.09252,0.00013973,2]
[343929787,1733089832042,-2278.18468452,0.00023661,2]
[343929788,1733089832053,-3000.0,0.000239,2]
[343929789,1733089832063,-177.216676,0.00025329,2]
[343929790,1733089832072,-970.7338838,0.00025402,2]
[343929791,1733089832082,-2337.4345547,0.00025558,2]
[343929792,1733089832091,-203.9481766,0.00025921,2]
[343929793,1733089832100,-482.1432892,0.00026383,2]
[343929794,1733089832109,-300.0,0.00026572,2]
[343929795,1733089832118,-300.0,0.00026572,2]
[343929796,1733089832128,-40263.15200097,0.00026572,2]
[343929797,1733089832143,-12977.84799903,0.00026572,2]
[343929798,1733089832152,-156.64,0.00027387,3]
[343929799,1733089832161,-3634.66,0.00027387,10]
[343929800,1733089832170,-475.81876455,0.00027396,2]
[343929802,1733089832180,-500.0,0.00027396,2]
[343929803,1733089832190,-203.46386391,0.00027396,2]
[343929805,1733089832199,-211.22787322,0.00027396,2]
[343929807,1733089832208,-500.0,0.00027397,3]
[343929809,1733089832218,-538.42015273,0.00027397,3]
[343929811,1733089832228,-500.0,0.00027397,3]
[343929813,1733089832237,-500.0,0.00027397,3]
[343929815,1733089832247,-452.45122996,0.00027397,3]
[343929816,1733089832257,-500.0,0.00027397,3]
[343929817,1733089832267,-332.68916889,0.00027397,2]
[343929819,1733089832276,-500.0,0.00027397,3]
[343929821,1733089832286,-206.92878253,0.00027397,3]
[343929823,1733089832297,-506.1670393,0.00027397,3]
[343929825,1733089832307,-229.21493961,0.00027397,3]
[343929827,1733089832317,-500.0,0.00027397,3]
[343929829,1733089832328,-500.0,0.00027397,3]
[343929831,1733089832337,-500.0,0.00027397,3]
[343929833,1733089832347,-500.0,0.00027397,3]
[343929835,1733089832357,-507.66306884,0.00027397,3]
[343929837,1733089832366,-500.0,0.00027397,3]
[343929839,1733089832378,-500.0,0.00027397,3]
[343929841,1733089832389,-326.11934735,0.00027397,3]
[343929842,1733089832399,-500.0,0.00027397,3]
[343929843,1733089832409,-500.0,0.00027397,3]
[343929844,1733089832418,-564.24971058,0.00027397,3]
[343929845,1733089832429,-500.0,0.00027397,3]
[343929846,1733089832441,-500.0,0.00027397,3]
[343929847,1733089832451,-382.54,0.00027397,3]
[343929848,1733089832461,-500.0,0.00027397,3]
[343929849,1733089832471,-338.07837382,0.00027397,3]
[343929851,1733089832482,-500.0,0.00027397,3]
[343929853,1733089832492,-500.0,0.00027397,3]
[343929856,1733089832502,-500.0,0.00027397,3]
[343929858,1733089832513,-500.0,0.00027397,3]
[343929860,1733089832522,-500.0,0.00027397,3]
[343929862,1733089832532,-500.0,0.00027397,3]
[343929864,1733089832541,-1673.47,0.00027397,3]
[343929865,1733089832554,-500.0,0.00027397,3]
[343929868,1733089832565,-559.42564322,0.00027397,3]
[343929869,1733089832575,-392.20120983,0.00027397,3]
[343929872,1733089832585,-500.0,0.00027397,3]
[343929873,1733089832594,-178.54280332,0.00027397,3]
[343929875,1733089832604,-500.0,0.00027397,3]
[343929877,1733089832615,-500.0,0.00027397,3]
[343929879,1733089832624,-500.0,0.00027397,3]
[343929881,1733089832635,-500.0,0.00027397,3]
[343929883,1733089832645,-500.0,0.00027397,3]
[343929885,1733089832655,-500.0,0.00027397,3]
[343929887,1733089832666,-500.0,0.00027397,3]
[343929889,1733089832676,-500.0,0.00027397,3]
[343929891,1733089832686,-500.0,0.00027397,3]
[343929894,1733089832698,-500.0,0.00027397,3]
[343929896,1733089832708,-1092.64,0.00027397,3]
[343929898,1733089832717,-500.0,0.00027397,2]
[343929899,1733089832727,-500.0,0.00027397,3]
[343929902,1733089832738,-500.0,0.00027397,3]
[343929903,1733089832747,-500.0,0.00027397,3]
[343929905,1733089832757,-500.0,0.00027397,3]
[343929907,1733089832768,-500.0,0.00027397,3]
[343929909,1733089832777,-500.0,0.00027397,3]
[343929911,1733089832787,-500.0,0.00027397,3]
[343929913,1733089832799,-209.67991543,0.00027397,3]
[343929915,1733089832809,-500.0,0.00027397,3]
[343929917,1733089832819,-500.0,0.00027397,3]
[343929919,1733089832828,-500.0,0.00027397,3]
[343929921,1733089832838,-500.0,0.00027397,3]
[343929923,1733089832848,-500.0,0.00027397,3]
[343929925,1733089832858,-500.0,0.00027397,3]
[343929927,1733089832867,-500.0,0.00027397,3]
[343929929,1733089832877,-500.0,0.00027397,3]
[343929931,1733089832887,-964.19,0.00027397,3]
[343929933,1733089832897,-500.0,0.00027397,3]
[343929935,1733089832907,-592.98425257,0.00027397,3]
[343929937,1733089832916,-9955.97,0.00027397,3]
[343929939,1733089832926,-500.0,0.00027397,3]
[343929941,1733089832936,-500.0,0.00027397,3]
[343929943,1733089832946,-500.0,0.00027397,3]
[343929944,1733089832956,-500.0,0.00027397,3]
[343929946,1733089832966,-500.0,0.00027397,3]
[343929947,1733089832976,-500.0,0.00027397,3]
[343929948,1733089832986,-500.0,0.00027397,3]
[343929949,1733089832995,-500.0,0.00027397,3]
[343929950,1733089833006,-500.0,0.00027397,3]
[343929952,1733089833016,-500.0,0.00027397,3]
[343929953,1733089833026,-500.0,0.00027397,3]
[343929954,1733089833036,-500.0,0.00027397,3]
[343929955,1733089833048,-502.92401233,0.00027397,3]
[343929956,1733089833059,-500.0,0.00027397,3]
[343929957,1733089833071,-500.0,0.00027397,3]
[343929958,1733089833081,-229.62695385,0.00027397,3]
[343929959,1733089833092,-561.27634762,0.00027397,3]
[343929960,1733089833102,-500.0,0.00027397,3]
[343929961,1733089833111,-500.0,0.00027397,3]
[343929962,1733089833121,-500.0,0.00027397,3]
[343929963,1733089833132,-500.0,0.00027397,3]
[343929964,1733089833143,-1640.01,0.00027397,3]
[343929965,1733089833153,-500.0,0.00027397,3]
[343929966,1733089833164,-500.0,0.00027397,3]
[343929967,1733089833174,-657.7,0.00027397,3]
[343929968,1733089833185,-683.8,0.00027397,3]
[343929969,1733089833195,-500.0,0.00027397,3]
[343929970,1733089833205,-500.0,0.00027397,3]
[343929971,1733089833215,-500.0,0.00027397,3]
[343929972,1733089833227,-1049.2,0.00027397,3]
[343929973,1733089833237,-432.9532775,0.00027397,3]
[343929974,1733089833247,-500.0,0.00027397,3]
[343929975,1733089833257,-500.0,0.00027397,3]
[343929976,1733089833268,-500.0,0.00027397,3]
[343929977,1733089833278,-500.0,0.00027397,3]
[343929978,1733089833288,-500.0,0.00027397,3]
[343929979,1733089833300,-500.0,0.00027397,3]
[343929980,1733089833310,-500.0,0.00027397,3]
[343929981,1733089833320,-304.33942592,0.00027397,3]
[343929982,1733089833330,-500.0,0.00027397,3]
[343929983,1733089833340,-500.0,0.00027397,3]
[343929984,1733089833350,-249.85070184,0.00027397,3]
[343929985,1733089833360,-2215.44,0.00027397,3]
[343929986,1733089833370,-747.48,0.00027397,3]
[343929987,1733089833381,-81.44201253,0.00027397,3]
[343929988,1733089833395,-823.51798747,0.00027397,3]
[343929989,1733089833405,-698.55,0.00027397,3]
[343929990,1733089833415,-576.83,0.00027397,3]
[343929991,1733089833425,-279.55595572,0.00027397,3]
[343929992,1733089833438,-160.0,0.000274,4]
[343929993,1733089833448,-535.28,0.000274,2]
[343929994,1733089833457,-153.04,0.000274,31]
[343929995,1733089833467,-153.04,0.000274,31]
[343929996,1733089833478,-153.04,0.000274,31]
[343929997,1733089833488,-153.04,0.000274,31]
[343929998,1733089833497,-153.04,0.000274,31]
[343929999,1733089833508,-153.04,0.000274,31]
[343930000,1733089833519,-200.02372,0.00027541,2]
[343930001,1733089833530,-153.0,0.00027616,30]
[343930002,1733089833541,-184.27361017,0.00027669,2]
[343930003,1733089833554,-212.19412969,0.00027669,2]
[343930004,1733089833564,-153.26363585,0.00027669,2]
[343930005,1733089833580,-412.41586384,0.00027669,2]
[343930006,1733089833590,-177.78790605,0.0002767,2]
[343930007,1733089833601,-44672.87223799,0.0002767,2]
[343930008,1733089833614,-33967.33887473,0.0002767,2]
[343930009,1733089833624,-500.0,0.00027671,3]
[343930010,1733089833634,-500.0,0.00027671,3]
[343930011,1733089833645,-500.0,0.00027671,3]
[343930012,1733089833656,-500.0,0.00027671,3]
[343930013,1733089833666,-500.0,0.00027671,3]
[343930014,1733089833676,-500.0,0.00027671,3]
[343930015,1733089833686,-513.20656209,0.00027671,3]
[343930016,1733089833695,-633.78612545,0.00027671,3]
[343930017,1733089833705,-457.40501808,0.00027671,3]
[343930018,1733089833716,-500.0,0.00027671,3]
[343930019,1733089833726,-500.0,0.00027671,3]
[343930020,1733089833736,-500.0,0.00027671,3]
[343930021,1733089833746,-500.0,0.00027671,3]
[343930022,1733089833757,-1673.47,0.00027671,3]
[343930023,1733089833767,-500.0,0.00027671,3]
[343930024,1733089833777,-502.52929526,0.00027671,3]
[343930025,1733089833788,-500.0,0.00027671,3]
[343930026,1733089833801,-500.0,0.00027671,3]
[343930027,1733089833814,-500.0,0.00027671,3]
[343930028,1733089833824,-1092.64,0.00027671,3]
[343930029,1733089833833,-500.0,0.00027671,3]
[343930030,1733089833843,-500.0,0.00027671,3]
[343930031,1733089833853,-500.0,0.00027671,3]
[343930032,1733089833863,-500.0,0.00027671,3]
[343930033,1733089833873,-500.0,0.00027671,3]
[343930034,1733089833883,-500.0,0.00027671,3]
[343930035,1733089833893,-964.19,0.00027671,3]
[343930036,1733089833903,-9955.97,0.00027671,3]
[343930037,1733089833912,-500.0,0.00027671,3]
[343930038,1733089833922,-500.0,0.00027671,3]
[343930039,1733089833932,-500.0,0.00027671,3]
[343930040,1733089833942,-500.0,0.00027671,3]
[343930041,1733089833952,-1640.01,0.00027671,3]
[343930042,1733089833963,-500.0,0.00027671,3]
[343930043,1733089833973,-500.0,0.00027671,3]
[343930044,1733089833985,-657.7,0.00027671,3]
[343930045,1733089833996,-683.8,0.00027671,3]
[343930046,1733089834008,-1049.2,0.00027671,3]
[343930047,1733089834018,-500.0,0.00027671,3]
[343930048,1733089834030,-500.0,0.00027671,3]
[343930049,1733089834041,-500.0,0.00027671,3]
[343930050,1733089834059,-500.0,0.00027671,3]
[343930051,1733089834071,-2215.44,0.00027671,3]
[343930052,1733089834085,-747.48,0.00027671,3]
[343930053,1733089834097,-904.96,0.00027671,3]
[343930054,1733089834110,-698.55,0.00027671,3]
[343930055,1733089834122,-576.83,0.00027671,3]
[343930056,1733089834133,-500.0,0.00027673,5]
[343930057,1733089834146,-500.0,0.00027945,3]
[343930058,1733089834158,-500.0,0.00027945,3]
[343930059,1733089834170,-500.0,0.00027945,3]
[343930060,1733089834181,-500.0,0.00027945,3]
[343930061,1733089834193,-1673.47,0.00027945,3]
[343930062,1733089834204,-500.0,0.00027945,3]
[343930063,1733089834216,-500.0,0.00027945,3]
[343930064,1733089834226,-500.0,0.00027945,3]
[343930065,1733089834238,-1092.64,0.00027945,3]
[343930066,1733089834250,-500.0,0.00027945,3]
[343930067,1733089834365,-500.0,0.00027945,3]
[343930068,1733089834375,-255.22042211,0.00027945,3]
[343930069,1733089834386,-500.0,0.00027945,3]
[343930070,1733089834396,-500.0,0.00027945,3]
[343930071,1733089834406,-964.19,0.00027945,3]
[343930072,1733089834416,-3808.57370228,0.00027945,3]